Workbook

Sheet ресур. обесп.
K1: Приложение 2
J2: к Отчету о реализации Программы
B3: Отчет об исполнении мероприятий муниципальной программы города Усолье-Сибирское
B4: "Охрана окружающей среды" на 2019-2027 годы за 2025 год
A6: № п/п | B6: Наименование муниципальной программы, подпрограммы, основного мероприятия, мероприятия, проекта | C6: Участники муниципальной программы, участники подпрограммы | D6: Источник финансирования | E6: Объем финансирования, предусмотренный на 2025 год, руб. | F6: Профинансировано за 2025 год, руб. | G6: Процент исполнения (гр 6/гр5*100) % | H6: Наименование показателя объема мероприятия, единица измерения | I6: Плановое значение показателя мероприятия на 2025 год | J6: Фактическое значение показателя мероприятия за 2025 год | K6: Обоснование причин отклонения (при наличии)
A7: 1 | B7: 2 | C7: 3 | D7: 4 | E7: 5 | F7: 6 | G7: 7 | H7: 8 | I7: 9 | J7: 10 | K7: 11
A8: Муниципальная программа города Усолье-Сибирское «Охрана окружающей среды» на 2019 – 2027 годы | D8: Всего | E8: =E9+E10 -> 37,398,410.87 | F8: =F9+F10 -> 37,262,712.45 | G8: =F8/E8*100 -> 99.64 | H8: * | I8: * | J8: * | K8: *
D9: местный бюджет | E9: =E12+E25+E27+E30+E32 -> 37,398,410.87 | F9: =F12+F25+F27+F32+F30 -> 37,262,712.45 | G9: 99.64 | H9: * | I9: * | J9: * | K9: *
D10: областной бюджет | E10: =E13 -> 0.00 | F10: =F13 -> 0.00 | G10: 100.00 | H10: * | I10: * | J10: * | K10: *
A11: 1. | B11: Подпрограмма № 1 "Снижение экологической нагрузки на городскую среду города Усолье-Сибирское" на 2019-2027 годы | D11: Всего | E11: =E12+E13 -> 25,203,732.47 | F11: =F12+F13 -> 25,093,843.39 | G11: =F11/E11*100 -> 99.56 | H11: * | I11: * | J11: * | K11: *
D12: местный бюджет | E12: =E14+E19+E21+E22+E23+E24 -> 25,203,732.47 | F12: =F14+F19+F21+F22+F23+F24 -> 25,093,843.39 | G12: =F12/E12*100 -> 99.56 | H12: * | I12: * | J12: * | K12: *
D13: областной бюджет | E13: 0.00 | F13: 0.00 | G13: 99.99 | H13: * | I13: * | J13: * | K13: *
A14: 1.1. | B14: Основное мероприятие 1.1. Уборка и улучшение санитарного состояния территории города Усолье-Сибирское | C14: Отдел по благоустройству и экологии города комитета по городскому хозяйству администрации города | D14: местный бюджет | E14: =E15+E16+E17+E18 -> 16,057,621.12 | F14: =F15+F16+F17+F18 -> 15,947,930.04 | G14: =F14/E14*100 -> 99.32 | H14: Доля исполненных мероприятий по уборке и улучшению санитарного состояния территории города Усолье- Сибирское, от запланированных (%) | I14: 100 | J14: 100 | K14: *
A15: 1.1.1 | B15: Мероприятие 1.1.1 Уборка территории города Усолье-Сибирское в период месячника по санитарной очистке и общегородского субботника | C15: Отдел по благоустройству и экологии города комитета по городскому хозяйству администрации города | D15: местный бюджет | E15: 4,364,917.26 | F15: 4,364,481.78 | G15: =F15/E15*100 -> 99.99 | K15: Отклонение в финансировании в размере 435,48 руб. - экономия по результатам заключенных муниципальных контрактов.
A16: 1.1.2 | B16: Мероприятие 1.1.2 Сбор, транспортирование и утилизация (захоронение) твердых коммунальных отходов с несанкционированных мест размещения отходов | C16: Отдел по благоустройству и экологии города комитета по городскому хозяйству администрации города | D16: местный бюджет | E16: 4,169,175.90 | F16: 4,154,666.49 | G16: =F16/E16*100 -> 99.65 | K16: Отклонение в финансировании в размере 14 509,41 руб. - экономия по результатам заключеных муниципальных контрактов.
A17: 1.1.3 | B17: Мероприятие 1.1.3. Содержание городских кладбищ | C17: Отдел по благоустройству и экологии города комитета по городскому хозяйству администрации города | D17: местный бюджет | E17: 7,401,027.96 | F17: 7,306,281.77 | G17: =F17/E17*100 -> 98.72 | K17: Отклонение в финансировании в размере 94 746,19 руб. - экономия по результатам исполнения муниципального контракта.
A18: 1.1.4. | B18: Мероприятие 1.1.6 Подбор павших животных на территории города Усолье-Сибирское | C18: Отдел по благоустройству и экологии города комитета по городскому хозяйству администрации города | D18: местный бюджет | E18: 122,500.00 | F18: 122,500.00 | G18: =F18/E18*100 -> 100.00
A19: 1.2. | B19: Основное мероприятие 1.2. Создание и обслуживание мест (площадок) накопления твердых коммунальных отходов | C19: Отдел по благоустройству и экологии города комитета по городскому хозяйству администрации города | D19: местный бюджет | E19: =E20 -> 6,576,312.77 | F19: =F20 -> 6,576,312.77 | G19: =F19/E19*100 -> 100.00 | H19: Количество обслуживаемых мест (площадок) накопления твердых коммунальных отходов (ед.) | I19: 174 | J19: 174
A20: 1.2.1. | B20: Мероприятие 1.2.2 Обслуживание мест (площадок) накопления твердых коммунальных отходов | C20: Отдел по благоустройству и экологии города комитета по городскому хозяйству администрации города | D20: местный бюджет | E20: 6,576,312.77 | F20: 6,576,312.77 | G20: =F20/E20*100 -> 100.00
A21: 1.3. | B21: Основное мероприятие 1.3 Мероприятия по отлову и содержанию животных без владельцев | C21: Отдел по благоустройству и экологии города комитета по городскому хозяйству администрации города | D21: местный бюджет | E21: 900,000.00 | F21: 899,802.00 | G21: =F21/E21*100 -> 99.98 | H21: Количество отловленных животных без владельцев (шт.) | I21: 535 | J21: 535 | K21: Отклонение в финансировании в размере 198,00 руб. - экономия по результатам исполнения муниципального контракта.
A22: 1.4. | B22: Основное мероприятие 1.4. Мероприятия по уничтожению дикорастущих наркосодержащих растений | C22: Отдел по благоустройству и экологии города комитета по городскому хозяйству администрации города | D22: местный бюджет | E22: 200,000.00 | F22: 200,000.00 | G22: =F22/E22*100 -> 100.00 | H22: Доля уничтоженных очагов произрастания дикорастущих наркосодержащих растений, от количества таких очагов, выявленных гражданами, полицией (%) | I22: 100 | J22: 100
A23: 1.5. | B23: Основное мероприятие 1.9. Проведение лабораторных исследований на территории города Усолье-Сибирское | C23: Отдел по благоустройству и экологии города комитета по городскому хозяйству администрации города | D23: местный бюджет | E23: 212,970.00 | F23: 212,970.00 | G23: =F23/E23*100 -> 100.00 | H23: Количество проведенных лабораторных исследований на территории города Усолье-Сибирское (проб) | I23: 7 | J23: 7
A24: 1.6. | B24: Основное мероприятие 1.11. Мероприятия по организации площадки для складирования отходов от зимней уборки на территории г. Усолье-Сибирское | C24: Отдел по благоустройству и экологии города комитета по городскому хозяйству администрации города | D24: местный бюджет | E24: 1,256,828.58 | F24: 1,256,828.58 | G24: 100.00 | H24: Доля исполненных мероприятий по проектированию, восстановлению, содержанию полигона для размещения снежных масс, от запланированных, (%) | I24: 100 | J24: 100
A25: 2. | B25: Подпрограмма № 2 «Озеленение территории города и восстановление природных ресурсов» на 2019-2027 годы | D25: местный бюджет | E25: =E26 -> 5,709,978.33 | F25: =F26 -> 5,709,978.33 | G25: 100.00 | H25: * | I25: * | J25: * | K25: *
A26: 2.1. | B26: Основное мероприятие 2.1. Озеленение территории города | C26: Отдел по благоустройству и экологии города комитета по городскому хозяйству администрации города | D26: местный бюджет | E26: 5,709,978.33 | F26: 5,709,978.33 | G26: 100.00 | H26: Доля исполненных мероприятий по содержанию и озеленению объектов общего пользования, расположенных на территории города, от запланированных (%) | I26: 100 | J26: 100
A27: 3. | B27: Подпрограмма № 3 «Развитие водохозяйственного комплекса» на 2019-2027 годы | D27: местный бюджет | E27: =E28+E29 -> 4,048,289.32 | F27: =F28+F29 -> 4,022,479.98 | G27: 99.36 | H27: * | I27: * | J27: * | K27: *
A28: 3.1. | B28: Основное мероприятие 3.1. Мероприятия по предотвращению разлива рек Шелестиха, Скипидарка | C28: Отдел по жизнеобеспечению города комитета по городскому хозяйству администрации города; Отдел по благоустройству и экологии комитета по городскому хозяйству администрации города | D28: местный бюджет | E28: 1,235,499.17 | F28: 1,235,498.36 | G28: 99.99 | H28: Протяженность очищенного русла рек Шелестиха, Скипидарка (км.) | I28: 2.2 | J28: 2.2 | K28: Отклонение в финансировании в размере 0,81 руб. - экономия по результатам исполнения муниципального контракта.
A29: 3.2. | B29: Основное мероприятие 3.2. Содержание водозаборных скважин | C29: Отдел по жизнеобеспечению города комитета по городскому хозяйству администрации города | D29: местный бюджет | E29: 2,812,790.15 | F29: 2,786,981.62 | G29: =F29/E29*100 -> 99.08 | H29: Количество водозаборных скважин, содержание которых выполнено (ед.) | I29: 4 | J29: 4 | K29: Отклонение в финансировании в размере 25 808,53 руб. - экономия по результатам исполнения муниципального контракта.
A30: 4. | B30: Подпрограмма № 4 «Экологическое образование населения» на 2019-2027 годы | D30: местный бюджет | E30: =E31 -> 79,200.00 | F30: =F31 -> 79,200.00 | G30: =F30/E30*100 -> 100.00 | H30: * | I30: * | J30: * | K30: *
A31: 4.1. | B31: Основное мероприятие 4.3. Изготовление и установка информационных щитов (баннеров, аншлагов) на территории города Усолье-Сибирское | C31: Отдел по благоустройству и экологии комитета по городскому хозяйству администрации города Усолье-Сибирское | D31: местный бюджет | E31: 79,200.00 | F31: 79,200.00 | G31: 100.00 | H31: Количество изготовленных и установленных информационных щитов (баннеров, аншлагов) на территории города Усолье-Сибирское (шт.) | I31: 11 | J31: 6
A32: 5. | B32: Подпрограмма № 5 «Предотвращение чрезвычайных ситуаций и обеспечение пожарной безопасности» на 2019-2027 годы | D32: местный бюджет | E32: =E33+E34+E36+E37+E35 -> 2,357,210.75 | F32: =F33+F34+F36+F37+F35 -> 2,357,210.75 | G32: 100.00 | H32: * | I32: * | J32: * | K32: *
A33: 5.1. | B33: Основное мероприятие 5.1. Устройство и обновление противопожарных минерализованных полос на территории города Усолье-Сибирское | C33: Отдел по благоустройству и экологии города комитета по городскому хозяйству администрации города | D33: местный бюджет | E33: 1,370,575.00 | F33: 1,370,575.00 | G33: =F33/E33*100 -> 100.00 | H33: Протяженность минерализованной полосы, подлежащей опашке и прочистке (км.) | I33: 35.26 | J33: 35.26
A34: 5.2. | B34: Основное мероприятие 5.2 Противопожарная пропаганда (баннеры, листовки, календари, магниты) | C34: МКУ "Служба г. Усолье-Сибирское по вопросам ГОЧС и ПБ" | D34: местный бюджет | E34: 97,840.00 | F34: 97,840.00 | G34: =F34/E34*100 -> 100.00 | H34: Количество изготовленной информации по противопожарной пропаганде (шт.) | I34: 6,000 | J34: 6,000
A35: 5.3. | B35: Основное мероприятие 5.3. Организация тушения лесных пожаров в границах города Усолье-Сибирское | C35: МКУ "Служба г. Усолье-Сибирское по вопросам ГОЧС и ПБ" | D35: местный бюджет | E35: 43,281.71 | F35: 43,281.71 | G35: 100.00 | H35: Доля исполненных мероприятий по тушению лесных пожаров в границах города Усолье-Сибирское от запланированных (%). | I35: 100 | J35: 100
A36: 5.4. | B36: Основное мероприятие 5.5. Мероприятия по обеспечению безопасности на водных объектах | C36: Отдел по благоустройству и экологии города комитета по городскому хозяйству администрации города | D36: местный бюджет | E36: 35,100.00 | F36: 35,100.00 | G36: 100.00 | H36: Количество изготовленных и установленных информационных аншлагов (знаков) (шт.) | I36: 4 | J36: 3
A37: 5.5. | B37: Основное мероприятие 5.7. Покос травянистой растительности | C37: Отдел по благоустройству и экологии комитета по городскому хозяйству администрации города | D37: местный бюджет | E37: 810,414.04 | F37: 810,414.04 | G37: =F37/E37*100 -> 100.00 | H37: Площадь скошенной травянистой растительности (100м2) | I37: 1,226.00 | J37: 1,226.00
A40: Мэр города М.В. Торопкин
